[Event "Early-Titled-Tuesday-Blitz-February-20-2024"]
[Site "Chess.com"]
[Date "2024.02.20"]
[Round "8"]
[White "alexrustemov"]
[Black "Ali_rastbod"]
[Result "1/2-1/2"]
[WhiteElo "2891"]
[BlackElo "2698"]
[TimeControl "180+1"]
[EndTime "9:31:34 PST"]
[Termination "Game drawn - insufficient material"]

1. d4 {[%clk 0:03:00.9]} 1... e6 {[%clk 0:02:55.9]} 2. c4 {[%clk 0:03:01]} 2...
Bb4+ {[%clk 0:02:55.1]} 3. Bd2 {[%clk 0:03:00.2]} 3... Qe7 {[%clk 0:02:55.3]} 4.
Nf3 {[%clk 0:02:59.3]} 4... Bxd2+ {[%clk 0:02:51.9]} 5. Qxd2 {[%clk 0:02:58.2]}
5... d6 {[%clk 0:02:52.5]} 6. Nc3 {[%clk 0:02:57.6]} 6... e5 {[%clk 0:02:51.4]}
7. Nd5 {[%clk 0:02:55.7]} 7... Qd8 {[%clk 0:02:46.3]} 8. dxe5 {[%clk 0:02:55.8]}
8... dxe5 {[%clk 0:02:43.5]} 9. Nxe5 {[%clk 0:02:55.6]} 9... Nf6 {[%clk
0:02:26]} 10. O-O-O {[%clk 0:02:50.4]} 10... O-O {[%clk 0:02:21.3]} 11. Qf4
{[%clk 0:02:40.1]} 11... Nxd5 {[%clk 0:02:12.7]} 12. cxd5 {[%clk 0:02:39.8]}
12... Qe7 {[%clk 0:02:05]} 13. e3 {[%clk 0:02:30.1]} 13... Nd7 {[%clk
0:01:54.8]} 14. Nxd7 {[%clk 0:02:25.3]} 14... Bxd7 {[%clk 0:01:55.7]} 15. Bd3
{[%clk 0:02:22.4]} 15... f5 {[%clk 0:01:37.4]} 16. Kb1 {[%clk 0:02:17.4]} 16...
c6 {[%clk 0:01:32.6]} 17. Bc4 {[%clk 0:02:14.4]} 17... Kh8 {[%clk 0:01:31.6]}
18. dxc6 {[%clk 0:02:04.3]} 18... Bxc6 {[%clk 0:01:31.4]} 19. Bd5 {[%clk
0:02:03.9]} 19... Rac8 {[%clk 0:01:12.6]} 20. a3 {[%clk 0:01:49.7]} 20... h6
{[%clk 0:01:00.3]} 21. Bxc6 {[%clk 0:01:44.1]} 21... Rxc6 {[%clk 0:00:59.9]} 22.
Rc1 {[%clk 0:01:44.6]} 22... Rg6 {[%clk 0:00:52.3]} 23. g3 {[%clk 0:01:33.7]}
23... Qe4+ {[%clk 0:00:52]} 24. Qxe4 {[%clk 0:01:21.7]} 24... fxe4 {[%clk
0:00:51.9]} 25. Rhf1 {[%clk 0:01:21.4]} 25... Rgf6 {[%clk 0:00:49]} 26. Rc2
{[%clk 0:01:20.8]} 26... Kh7 {[%clk 0:00:37.2]} 27. Kc1 {[%clk 0:01:19.2]} 27...
Kg6 {[%clk 0:00:37.1]} 28. Kd1 {[%clk 0:01:18.4]} 28... Kg5 {[%clk 0:00:26]} 29.
h3 {[%clk 0:01:17.8]} 29... h5 {[%clk 0:00:22.3]} 30. Ke2 {[%clk 0:01:16.3]}
30... h4 {[%clk 0:00:22.3]} 31. Rc5+ {[%clk 0:01:16]} 31... Rf5 {[%clk
0:00:22.5]} 32. Rfc1 {[%clk 0:01:11.1]} 32... b6 {[%clk 0:00:19.8]} 33. Rxf5+
{[%clk 0:01:10.6]} 33... Rxf5 {[%clk 0:00:20.7]} 34. gxh4+ {[%clk 0:01:02.8]}
34... Kxh4 {[%clk 0:00:18.5]} 35. Rg1 {[%clk 0:01:02.7]} 35... g5 {[%clk
0:00:09.7]} 36. Rg4+ {[%clk 0:01:02.2]} 36... Kxh3 {[%clk 0:00:10.1]} 37. Rxe4
{[%clk 0:01:03.1]} 37... Rb5 {[%clk 0:00:07.2]} 38. b4 {[%clk 0:01:01.3]} 38...
a5 {[%clk 0:00:07.1]} 39. Rd4 {[%clk 0:00:47]} 39... axb4 {[%clk 0:00:07.1]} 40.
Rxb4 {[%clk 0:00:43.2]} 40... Ra5 {[%clk 0:00:06.9]} 41. a4 {[%clk 0:00:41.5]}
41... g4 {[%clk 0:00:06.9]} 42. e4 {[%clk 0:00:40.4]} 42... Rc5 {[%clk
0:00:05.5]} 43. Rxb6 {[%clk 0:00:37]} 43... Rc2+ {[%clk 0:00:06]} 44. Ke3 {[%clk
0:00:36.9]} 44... Rc3+ {[%clk 0:00:06.6]} 45. Kd4 {[%clk 0:00:36.7]} 45... Rc2
{[%clk 0:00:04.8]} 46. Rf6 {[%clk 0:00:35.3]} 46... Ra2 {[%clk 0:00:05.2]} 47.
e5 {[%clk 0:00:35]} 47... Rxa4+ {[%clk 0:00:05.8]} 48. Kd5 {[%clk 0:00:33.5]}
48... Ra5+ {[%clk 0:00:05.4]} 49. Ke4 {[%clk 0:00:33]} 49... Ra4+ {[%clk
0:00:03.7]} 50. Kf5 {[%clk 0:00:32.5]} 50... Kg2 {[%clk 0:00:02.2]} 51. Kg6
{[%clk 0:00:27]} 51... Re4 {[%clk 0:00:02.3]} 52. e6 {[%clk 0:00:26.9]} 52...
Re2 {[%clk 0:00:02.7]} 53. Kf7 {[%clk 0:00:25]} 53... Rxf2 {[%clk 0:00:02.5]}
54. Rxf2+ {[%clk 0:00:23.7]} 54... Kxf2 {[%clk 0:00:03.4]} 55. e7 {[%clk
0:00:24.2]} 55... g3 {[%clk 0:00:04]} 56. e8=Q {[%clk 0:00:24.6]} 56... g2
{[%clk 0:00:04.9]} 57. Qe5 {[%clk 0:00:09.9]} 57... g1=Q {[%clk 0:00:05.8]} 58.
Qd4+ {[%clk 0:00:09.8]} 58... Kg2 {[%clk 0:00:05.9]} 59. Qxg1+ {[%clk
0:00:08.9]} 59... Kxg1 {[%clk 0:00:06.3]} 1/2-1/2

[Event "Early-Titled-Tuesday-Blitz-February-20-2024"]
[Site "Chess.com"]
[Date "2024.02.20"]
[Round "8"]
[White "KetiTsatsalashvili"]
[Black "Boundless_Strike"]
[Result "0-1"]
[WhiteElo "2452"]
[BlackElo "2638"]
[TimeControl "180+1"]
[EndTime "9:31:35 PST"]
[Termination "Boundless_Strike won by checkmate"]

1. d4 {[%clk 0:03:00.9]} 1... e5 {[%clk 0:02:59.8]} 2. dxe5 {[%clk 0:03:00.6]}
2... d6 {[%clk 0:03:00.5]} 3. exd6 {[%clk 0:03:00.3]} 3... Bxd6 {[%clk
0:03:01.4]} 4. Nf3 {[%clk 0:03:00.4]} 4... Nc6 {[%clk 0:03:02.1]} 5. h3 {[%clk
0:02:56.7]} 5... Bf5 {[%clk 0:02:53.7]} 6. Nbd2 {[%clk 0:02:53.1]} 6... Qe7
{[%clk 0:02:53.5]} 7. e3 {[%clk 0:02:45.3]} 7... O-O-O {[%clk 0:02:52.8]} 8. Bb5
{[%clk 0:02:45.4]} 8... Nb4 {[%clk 0:02:32]} 9. Ba4 {[%clk 0:02:42.5]} 9... Nf6
{[%clk 0:02:22.7]} 10. a3 {[%clk 0:02:42.6]} 10... Nbd5 {[%clk 0:02:21]} 11. Qe2
{[%clk 0:02:32.7]} 11... c6 {[%clk 0:01:56.2]} 12. Nd4 {[%clk 0:02:32]} 12...
Bg6 {[%clk 0:01:52.5]} 13. Bxc6 {[%clk 0:02:05.4]} 13... bxc6 {[%clk 0:01:35]}
14. Nxc6 {[%clk 0:02:06.3]} 14... Qb7 {[%clk 0:01:33.3]} 15. Nxd8 {[%clk
0:02:00.8]} 15... Rxd8 {[%clk 0:01:33.5]} 16. O-O {[%clk 0:01:53.1]} 16... Bxc2
{[%clk 0:01:10.6]} 17. Nc4 {[%clk 0:01:32.5]} 17... Qb3 {[%clk 0:00:51.9]} 18.
Bd2 {[%clk 0:00:37.8]} 18... Bc7 {[%clk 0:00:39.1]} 19. Rfc1 {[%clk 0:00:31.1]}
19... Bd3 {[%clk 0:00:35.3]} 20. Na5 {[%clk 0:00:26.5]} 20... Bxe2 {[%clk
0:00:16]} 21. Nxb3 {[%clk 0:00:26.4]} 21... Ne4 {[%clk 0:00:15]} 22. Ba5 {[%clk
0:00:25.6]} 22... Nb6 {[%clk 0:00:15.4]} 23. Nd4 {[%clk 0:00:23.7]} 23... Bd3
{[%clk 0:00:10.2]} 24. f3 {[%clk 0:00:24]} 24... Nd6 {[%clk 0:00:08.5]} 25. Rc3
{[%clk 0:00:23.3]} 25... Ba6 {[%clk 0:00:07]} 26. Rac1 {[%clk 0:00:23]} 26...
Rd7 {[%clk 0:00:07.7]} 27. Nc6 {[%clk 0:00:20.9]} 27... Kb7 {[%clk 0:00:07.4]}
28. Bb4 {[%clk 0:00:19.4]} 28... Nb5 {[%clk 0:00:06.8]} 29. Na5+ {[%clk
0:00:17.5]} 29... Kb8 {[%clk 0:00:07.5]} 30. Nc6+ {[%clk 0:00:16.7]} 30... Kb7
{[%clk 0:00:07.9]} 31. Na5+ {[%clk 0:00:16.7]} 31... Ka8 {[%clk 0:00:08.2]} 32.
Rc5 {[%clk 0:00:14.4]} 32... Na4 {[%clk 0:00:06.1]} 33. Rf5 {[%clk 0:00:11.4]}
33... Nxb2 {[%clk 0:00:03.5]} 34. Rfc5 {[%clk 0:00:09.7]} 34... Nd3 {[%clk
0:00:03.3]} 35. Rd1 {[%clk 0:00:09.1]} 35... Nxc5 {[%clk 0:00:03.6]} 36. Rxd7
{[%clk 0:00:09.3]} 36... Nxd7 {[%clk 0:00:04]} 37. Nc6 {[%clk 0:00:09.4]} 37...
Bb7 {[%clk 0:00:03.2]} 38. Ne7 {[%clk 0:00:09.3]} 38... Bd6 {[%clk 0:00:03.5]}
39. Nf5 {[%clk 0:00:07.7]} 39... Bxb4 {[%clk 0:00:03.7]} 40. axb4 {[%clk
0:00:08.6]} 40... g6 {[%clk 0:00:04]} 41. Nh6 {[%clk 0:00:08.9]} 41... f5 {[%clk
0:00:03.7]} 42. Nf7 {[%clk 0:00:08]} 42... Nb8 {[%clk 0:00:04]} 43. Ng5 {[%clk
0:00:08.1]} 43... Nc6 {[%clk 0:00:04.4]} 44. Nxh7 {[%clk 0:00:08.3]} 44... Nxb4
{[%clk 0:00:05]} 45. Nf8 {[%clk 0:00:09.2]} 45... a5 {[%clk 0:00:05.5]} 46. Nxg6
{[%clk 0:00:09.2]} 46... a4 {[%clk 0:00:06.1]} 47. Ne5 {[%clk 0:00:09.9]} 47...
a3 {[%clk 0:00:06.6]} 48. h4 {[%clk 0:00:09.7]} 48... a2 {[%clk 0:00:07.1]} 49.
Kh2 {[%clk 0:00:10.6]} 49... a1=Q {[%clk 0:00:07.4]} 50. f4 {[%clk 0:00:11.3]}
50... Qe1 {[%clk 0:00:06.9]} 51. Nf3 {[%clk 0:00:10.6]} 51... Qf2 {[%clk
0:00:07.1]} 52. Kh3 {[%clk 0:00:10.5]} 52... Bxf3 {[%clk 0:00:07.7]} 53. gxf3
{[%clk 0:00:10.5]} 53... Qxf3+ {[%clk 0:00:08.3]} 54. Kh2 {[%clk 0:00:11.4]}
54... Qg4 {[%clk 0:00:08.9]} 55. h5 {[%clk 0:00:11.4]} 55... Qxh5+ {[%clk
0:00:08.9]} 56. Kg3 {[%clk 0:00:10.1]} 56... Qg4+ {[%clk 0:00:09.8]} 57. Kf2
{[%clk 0:00:09.9]} 57... Nc3 {[%clk 0:00:10.7]} 58. e4 {[%clk 0:00:09.9]} 58...
Nxe4+ {[%clk 0:00:10.5]} 59. Ke3 {[%clk 0:00:10.8]} 59... Qg3+ {[%clk
0:00:10.9]} 60. Kd4 {[%clk 0:00:11.7]} 60... Qxf4 {[%clk 0:00:10.5]} 61. Kc4
{[%clk 0:00:10.6]} 61... Qc7+ {[%clk 0:00:10.5]} 62. Kd4 {[%clk 0:00:10.7]}
62... Qc5# {[%clk 0:00:10.1]} 0-1

[Event "Early-Titled-Tuesday-Blitz-February-20-2024"]
[Site "Chess.com"]
[Date "2024.02.20"]
[Round "8"]
[White "Maftuna2303"]
[Black "cukin84"]
[Result "0-1"]
[WhiteElo "2396"]
[BlackElo "2243"]
[TimeControl "180+1"]
[EndTime "9:31:36 PST"]
[Termination "cukin84 won by checkmate"]

1. e4 {[%clk 0:03:00.9]} 1... c6 {[%clk 0:02:59.3]} 2. d4 {[%clk 0:02:59.9]}
2... d5 {[%clk 0:02:59.5]} 3. Nd2 {[%clk 0:03:00.3]} 3... a6 {[%clk 0:02:58.5]}
4. Ngf3 {[%clk 0:02:59.2]} 4... Bg4 {[%clk 0:02:57.6]} 5. Be2 {[%clk 0:02:58.4]}
5... e6 {[%clk 0:02:57.8]} 6. h3 {[%clk 0:02:58.2]} 6... Bh5 {[%clk 0:02:57.2]}
7. O-O {[%clk 0:02:57.6]} 7... Nf6 {[%clk 0:02:56.7]} 8. e5 {[%clk 0:02:55.4]}
8... Nfd7 {[%clk 0:02:56.7]} 9. c3 {[%clk 0:02:55.5]} 9... c5 {[%clk 0:02:56.8]}
10. Ne1 {[%clk 0:02:51.4]} 10... Bxe2 {[%clk 0:02:55.3]} 11. Qxe2 {[%clk
0:02:51.5]} 11... Nc6 {[%clk 0:02:55.1]} 12. Nc2 {[%clk 0:02:51.8]} 12... b5
{[%clk 0:02:51.6]} 13. f4 {[%clk 0:02:49.3]} 13... cxd4 {[%clk 0:02:49.5]} 14.
Nxd4 {[%clk 0:02:47.1]} 14... Qb6 {[%clk 0:02:45.7]} 15. Nf3 {[%clk 0:02:45.6]}
15... Bc5 {[%clk 0:02:43.5]} 16. Be3 {[%clk 0:02:44.1]} 16... g6 {[%clk
0:02:41.4]} 17. b4 {[%clk 0:02:34.6]} 17... Bxd4 {[%clk 0:02:40.9]} 18. Nxd4
{[%clk 0:02:31.2]} 18... Ne7 {[%clk 0:02:26.6]} 19. Nf5 {[%clk 0:02:22.7]} 19...
Qc7 {[%clk 0:02:24.6]} 20. Nd6+ {[%clk 0:02:22]} 20... Kf8 {[%clk 0:02:24.3]}
21. Bd4 {[%clk 0:02:21.7]} 21... Nf5 {[%clk 0:02:13.5]} 22. Rac1 {[%clk
0:02:19.8]} 22... h5 {[%clk 0:02:00.1]} 23. Qf2 {[%clk 0:02:16.8]} 23... Rg8
{[%clk 0:01:48.1]} 24. g4 {[%clk 0:01:57]} 24... hxg4 {[%clk 0:01:47.3]} 25.
hxg4 {[%clk 0:01:57.2]} 25... Nxd6 {[%clk 0:01:47.3]} 26. exd6 {[%clk
0:01:57.2]} 26... Qxd6 {[%clk 0:01:47]} 27. Qh4 {[%clk 0:01:57]} 27... Rc8
{[%clk 0:01:27.1]} 28. Rce1 {[%clk 0:01:50.2]} 28... Rc4 {[%clk 0:01:22.4]} 29.
Qh6+ {[%clk 0:01:48.9]} 29... Ke8 {[%clk 0:01:20.7]} 30. Qh7 {[%clk 0:01:22.8]}
30... Rf8 {[%clk 0:01:11.6]} 31. Bg7 {[%clk 0:01:22.4]} 31... Qb6+ {[%clk
0:01:07.3]} 32. Kh1 {[%clk 0:01:19.2]} 32... Qc7 {[%clk 0:00:58.5]} 33. f5
{[%clk 0:01:11.4]} 33... gxf5 {[%clk 0:00:57.9]} 34. gxf5 {[%clk 0:01:09.7]}
34... Qg3 {[%clk 0:00:53.5]} 35. Bd4 {[%clk 0:00:48.8]} 35... Nf6 {[%clk
0:00:35.3]} 36. Qh2 {[%clk 0:00:36]} 36... Qxh2+ {[%clk 0:00:31.3]} 37. Kxh2
{[%clk 0:00:36.2]} 37... Rh8+ {[%clk 0:00:21.3]} 38. Kg2 {[%clk 0:00:31.6]}
38... Rg8+ {[%clk 0:00:20.8]} 39. Kh3 {[%clk 0:00:23.4]} 39... Ne4 {[%clk
0:00:20.1]} 40. fxe6 {[%clk 0:00:20.4]} 40... fxe6 {[%clk 0:00:19.8]} 41. Rg1
{[%clk 0:00:20.6]} 41... Rf8 {[%clk 0:00:19]} 42. Rg7 {[%clk 0:00:18.5]} 42...
e5 {[%clk 0:00:19.1]} 43. Bxe5 {[%clk 0:00:17.3]} 43... Kd8 {[%clk 0:00:12.1]}
44. Ra7 {[%clk 0:00:16.7]} 44... Rf3+ {[%clk 0:00:10.4]} 45. Kg2 {[%clk
0:00:16.5]} 45... Rf2+ {[%clk 0:00:10]} 46. Kg1 {[%clk 0:00:16.9]} 46... Rf5
{[%clk 0:00:09]} 47. Bd4 {[%clk 0:00:15.6]} 47... Nd2 {[%clk 0:00:08]} 48. Ree7
{[%clk 0:00:14.2]} 48... Nf3+ {[%clk 0:00:07.1]} 49. Kg2 {[%clk 0:00:14]} 49...
Nxd4 {[%clk 0:00:06]} 50. Rh7 {[%clk 0:00:13.9]} 50... Rg5+ {[%clk 0:00:04.5]}
51. Kf2 {[%clk 0:00:14.2]} 51... Rf5+ {[%clk 0:00:03.1]} 52. Kg3 {[%clk
0:00:14.3]} 52... Ne2+ {[%clk 0:00:02.5]} 53. Kg2 {[%clk 0:00:14.9]} 53... Rg4+
{[%clk 0:00:02.1]} 54. Kh3 {[%clk 0:00:13.6]} 54... Rg3+ {[%clk 0:00:01.8]} 55.
Kh2 {[%clk 0:00:13.9]} 55... Rf2+ {[%clk 0:00:01.9]} 56. Kh1 {[%clk 0:00:14.3]}
56... Rg1# {[%clk 0:00:02.2]} 0-1

[Event "Early-Titled-Tuesday-Blitz-February-20-2024"]
[Site "Chess.com"]
[Date "2024.02.20"]
[Round "8"]
[White "KuzubovYuriy"]
[Black "DreamsAreFake"]
[Result "1-0"]
[WhiteElo "2956"]
[BlackElo "2766"]
[TimeControl "180+1"]
[EndTime "9:31:40 PST"]
[Termination "KuzubovYuriy won by resignation"]

1. d4 {[%clk 0:03:00.9]} 1... Nf6 {[%clk 0:02:59.2]} 2. Nf3 {[%clk 0:03:01.1]}
2... b6 {[%clk 0:02:59.6]} 3. c4 {[%clk 0:02:59.4]} 3... Bb7 {[%clk 0:02:59.2]}
4. g3 {[%clk 0:02:59.4]} 4... g6 {[%clk 0:02:59.3]} 5. Nc3 {[%clk 0:02:57.2]}
5... Bg7 {[%clk 0:02:59.6]} 6. Bg2 {[%clk 0:02:52.2]} 6... Ne4 {[%clk
0:02:59.7]} 7. Nxe4 {[%clk 0:02:40.9]} 7... Bxe4 {[%clk 0:03:00.6]} 8. O-O
{[%clk 0:02:41.3]} 8... O-O {[%clk 0:03:00.7]} 9. Qb3 {[%clk 0:02:38.9]} 9... c5
{[%clk 0:02:58.3]} 10. dxc5 {[%clk 0:02:29.9]} 10... bxc5 {[%clk 0:02:59.2]} 11.
Qe3 {[%clk 0:02:29.5]} 11... Bc6 {[%clk 0:02:53.2]} 12. Qxc5 {[%clk 0:02:27.1]}
12... d6 {[%clk 0:02:52.3]} 13. Qa3 {[%clk 0:02:21.4]} 13... a5 {[%clk
0:02:49.6]} 14. Bd2 {[%clk 0:02:17.7]} 14... Qc7 {[%clk 0:02:44.5]} 15. Bc3
{[%clk 0:01:53.9]} 15... Bxc3 {[%clk 0:02:42.9]} 16. Qxc3 {[%clk 0:01:53.7]}
16... Nd7 {[%clk 0:02:41.8]} 17. Rac1 {[%clk 0:01:50.6]} 17... a4 {[%clk
0:02:40.5]} 18. b4 {[%clk 0:01:44.5]} 18... axb3 {[%clk 0:02:37]} 19. axb3
{[%clk 0:01:45.4]} 19... Ra3 {[%clk 0:02:34.5]} 20. Ra1 {[%clk 0:01:36.8]} 20...
Rfa8 {[%clk 0:02:34.7]} 21. Rxa3 {[%clk 0:01:30.2]} 21... Rxa3 {[%clk
0:02:35.6]} 22. Ra1 {[%clk 0:01:30.4]} 22... Qa7 {[%clk 0:02:35.9]} 23. Rxa3
{[%clk 0:01:27.7]} 23... Qxa3 {[%clk 0:02:36.8]} 24. Nd2 {[%clk 0:01:24.1]}
24... Bxg2 {[%clk 0:02:35.6]} 25. Kxg2 {[%clk 0:01:25]} 25... Nc5 {[%clk
0:02:35.3]} 26. g4 {[%clk 0:01:15.5]} 26... h6 {[%clk 0:02:33.9]} 27. h4 {[%clk
0:01:13.8]} 27... Kh7 {[%clk 0:02:31.9]} 28. f3 {[%clk 0:01:12.5]} 28... Kg8
{[%clk 0:02:26.7]} 29. Qe3 {[%clk 0:01:07.3]} 29... Qb2 {[%clk 0:02:23]} 30. Kf2
{[%clk 0:00:54.2]} 30... Kg7 {[%clk 0:01:53.6]} 31. Nf1 {[%clk 0:00:52.7]} 31...
e6 {[%clk 0:01:43.3]} 32. Nd2 {[%clk 0:00:41.5]} 32... e5 {[%clk 0:01:43]} 33.
f4 {[%clk 0:00:20.4]} 33... f6 {[%clk 0:01:19.5]} 34. fxe5 {[%clk 0:00:20.2]}
34... fxe5 {[%clk 0:01:20.4]} 35. g5 {[%clk 0:00:19.7]} 35... Qc1 {[%clk
0:01:06.1]} 36. gxh6+ {[%clk 0:00:19.4]} 36... Kh7 {[%clk 0:01:06.7]} 37. Nf3
{[%clk 0:00:19]} 37... Qh1 {[%clk 0:01:02.7]} 38. Ng5+ {[%clk 0:00:18.5]} 38...
Kh8 {[%clk 0:00:59.9]} 39. Qg3 {[%clk 0:00:17.2]} 39... Nd7 {[%clk 0:00:36.5]}
40. Nf3 {[%clk 0:00:15.8]} 40... Kh7 {[%clk 0:00:35.5]} 41. Qg5 {[%clk
0:00:14.8]} 41... Nc5 {[%clk 0:00:31.9]} 42. Qe7+ {[%clk 0:00:14.6]} 42... Kxh6
{[%clk 0:00:32.4]} 43. Qf8+ {[%clk 0:00:15]} 43... Kh5 {[%clk 0:00:32.2]} 44.
Qh8+ {[%clk 0:00:14.3]} 44... Kg4 {[%clk 0:00:32.7]} 45. Qc8+ {[%clk 0:00:14.6]}
45... Kh5 {[%clk 0:00:32.4]} 46. Ke3 {[%clk 0:00:13.1]} 46... Qc1+ {[%clk
0:00:31.5]} 47. Kf2 {[%clk 0:00:13.2]} 47... Ne4+ {[%clk 0:00:30.1]} 48. Kg2
{[%clk 0:00:13.6]} 48... Qf4 {[%clk 0:00:26]} 49. Qh8+ {[%clk 0:00:13.1]} 49...
Kg4 {[%clk 0:00:24.6]} 50. Nh2+ {[%clk 0:00:13.4]} 50... Kf5 {[%clk 0:00:23]}
51. Qf8+ {[%clk 0:00:12.5]} 51... Nf6 {[%clk 0:00:23]} 52. Qc8+ {[%clk
0:00:12.6]} 52... Ke4 {[%clk 0:00:23.7]} 53. Qc6+ {[%clk 0:00:12.7]} 53... Ke3
{[%clk 0:00:23.1]} 54. Qf3+ {[%clk 0:00:12.6]} 54... Qxf3+ {[%clk 0:00:23.5]}
55. exf3 {[%clk 0:00:13.3]} 55... Kd3 {[%clk 0:00:20.9]} 56. Ng4 {[%clk
0:00:13.6]} 56... Nh5 {[%clk 0:00:20]} 57. c5 {[%clk 0:00:13.3]} 57... dxc5
{[%clk 0:00:18.4]} 58. Nxe5+ {[%clk 0:00:13.6]} 58... Kc3 {[%clk 0:00:19.2]} 59.
Nd7 {[%clk 0:00:13.8]} 59... Nf4+ {[%clk 0:00:18.2]} 60. Kg3 {[%clk 0:00:13.8]}
60... Ne6 {[%clk 0:00:17.8]} 61. Ne5 {[%clk 0:00:11.6]} 61... Kxb3 {[%clk
0:00:17.4]} 62. Nxg6 {[%clk 0:00:11.8]} 62... c4 {[%clk 0:00:18.2]} 63. Ne5
{[%clk 0:00:12]} 63... c3 {[%clk 0:00:18.9]} 64. Nd3 {[%clk 0:00:12.3]} 64... c2
{[%clk 0:00:17.1]} 65. h5 {[%clk 0:00:12.8]} 65... Kc3 {[%clk 0:00:17.7]} 66.
Nc1 {[%clk 0:00:13.2]} 66... Nd4 {[%clk 0:00:17.4]} 67. h6 {[%clk 0:00:13]}
67... Kb2 {[%clk 0:00:17.9]} 68. h7 {[%clk 0:00:12.8]} 68... Kxc1 {[%clk
0:00:17.3]} 69. h8=Q {[%clk 0:00:13.3]} 69... Ne2+ {[%clk 0:00:16.9]} 70. Kf2
{[%clk 0:00:13.7]} 70... Kd2 {[%clk 0:00:17.8]} 71. Qd8+ {[%clk 0:00:13.7]}
71... Kc3 {[%clk 0:00:18.1]} 72. Kxe2 {[%clk 0:00:13.9]} 1-0

[Event "Early-Titled-Tuesday-Blitz-February-20-2024"]
[Site "Chess.com"]
[Date "2024.02.20"]
[Round "8"]
[White "Joachim100x"]
[Black "ATM622"]
[Result "1-0"]
[WhiteElo "2342"]
[BlackElo "2469"]
[TimeControl "180+1"]
[EndTime "9:31:41 PST"]
[Termination "Joachim100x won by resignation"]

1. Nf3 {[%clk 0:03:00.9]} 1... Nf6 {[%clk 0:02:55.1]} 2. d4 {[%clk 0:03:00.6]}
2... e6 {[%clk 0:02:50.6]} 3. g3 {[%clk 0:03:00]} 3... d5 {[%clk 0:02:47]} 4.
Bg2 {[%clk 0:03:00.2]} 4... Be7 {[%clk 0:02:44.6]} 5. O-O {[%clk 0:03:00.3]}
5... O-O {[%clk 0:02:39.3]} 6. c4 {[%clk 0:03:00.5]} 6... dxc4 {[%clk
0:02:38.2]} 7. Ne5 {[%clk 0:03:00.6]} 7... c5 {[%clk 0:02:37.9]} 8. dxc5 {[%clk
0:02:58.5]} 8... Bxc5 {[%clk 0:02:35.6]} 9. Nxc4 {[%clk 0:02:54.5]} 9... Qc7
{[%clk 0:02:24]} 10. Qb3 {[%clk 0:02:44.5]} 10... Nc6 {[%clk 0:02:20.4]} 11. Bf4
{[%clk 0:02:31.8]} 11... e5 {[%clk 0:02:06.1]} 12. Be3 {[%clk 0:02:26.5]} 12...
Bxe3 {[%clk 0:01:54.9]} 13. Qxe3 {[%clk 0:02:25.4]} 13... Nd4 {[%clk 0:01:45.5]}
14. Nba3 {[%clk 0:02:25]} 14... Ng4 {[%clk 0:01:38.3]} 15. Qe4 {[%clk
0:02:14.1]} 15... Bf5 {[%clk 0:01:35.6]} 16. Qxb7 {[%clk 0:02:12.9]} 16... Nxe2+
{[%clk 0:01:34.6]} 17. Kh1 {[%clk 0:02:13]} 17... Qc5 {[%clk 0:01:23.4]} 18. Qf3
{[%clk 0:01:48.9]} 18... e4 {[%clk 0:01:22.7]} 19. Qxe2 {[%clk 0:01:47.6]} 19...
Rfe8 {[%clk 0:00:59.8]} 20. Ne3 {[%clk 0:01:47.4]} 20... Nh6 {[%clk 0:00:48.9]}
21. Nxf5 {[%clk 0:01:43.7]} 21... Nxf5 {[%clk 0:00:48.9]} 22. Rac1 {[%clk
0:01:42.9]} 22... Qe5 {[%clk 0:00:47.7]} 23. Nc4 {[%clk 0:01:41.4]} 23... Qf6
{[%clk 0:00:44.9]} 24. Rcd1 {[%clk 0:01:33.7]} 24... Rac8 {[%clk 0:00:41.3]} 25.
b3 {[%clk 0:01:33.4]} 25... a5 {[%clk 0:00:37.1]} 26. Bxe4 {[%clk 0:01:25.2]}
26... Nd4 {[%clk 0:00:33.2]} 27. Qe3 {[%clk 0:01:25.1]} 27... Nc2 {[%clk
0:00:19.8]} 28. Qd3 {[%clk 0:01:16.5]} 28... Nb4 {[%clk 0:00:19.6]} 29. Qb1
{[%clk 0:01:16.1]} 29... h5 {[%clk 0:00:15.9]} 30. a3 {[%clk 0:01:14.6]} 30...
Na2 {[%clk 0:00:12.3]} 31. Qxa2 {[%clk 0:01:04.8]} 31... Rxe4 {[%clk 0:00:12.1]}
32. f3 {[%clk 0:00:59.4]} 32... Re6 {[%clk 0:00:11.7]} 33. a4 {[%clk 0:00:48.3]}
33... h4 {[%clk 0:00:11.7]} 34. Qg2 {[%clk 0:00:47.1]} 34... Qc3 {[%clk
0:00:09.5]} 35. Rb1 {[%clk 0:00:41.9]} 35... hxg3 {[%clk 0:00:07.5]} 36. Qxg3
{[%clk 0:00:40.4]} 36... Rg6 {[%clk 0:00:07.1]} 37. Qf2 {[%clk 0:00:40.3]} 37...
Re8 {[%clk 0:00:04.4]} 38. Qd2 {[%clk 0:00:32.3]} 38... Qf6 {[%clk 0:00:04]} 39.
Rbe1 {[%clk 0:00:29.4]} 39... Rd8 {[%clk 0:00:03.6]} 40. Qe3 {[%clk 0:00:26.1]}
40... Qh4 {[%clk 0:00:03.4]} 41. Qf2 {[%clk 0:00:25.2]} 41... Qh3 {[%clk
0:00:03.5]} 42. Ne5 {[%clk 0:00:24.7]} 42... Re6 {[%clk 0:00:03.3]} 43. Qg2
{[%clk 0:00:19.5]} 43... Qf5 {[%clk 0:00:03.1]} 44. f4 {[%clk 0:00:18.6]} 44...
Rd4 {[%clk 0:00:02.5]} 45. Qf2 {[%clk 0:00:17.5]} 45... Rb4 {[%clk 0:00:02.5]}
46. Re3 {[%clk 0:00:16.9]} 46... Rb8 {[%clk 0:00:02.4]} 47. Rfe1 {[%clk
0:00:16.4]} 47... Rbe8 {[%clk 0:00:02.7]} 48. Nc4 {[%clk 0:00:15.6]} 48... Rxe3
{[%clk 0:00:02.6]} 49. Rxe3 {[%clk 0:00:15.2]} 49... Qd5+ {[%clk 0:00:02.8]} 50.
Kg1 {[%clk 0:00:14.5]} 50... Rd8 {[%clk 0:00:02.9]} 51. Ne5 {[%clk 0:00:12.7]}
51... Qd1+ {[%clk 0:00:02.9]} 52. Re1 {[%clk 0:00:12.5]} 52... Qd5 {[%clk
0:00:02.4]} 53. Qe3 {[%clk 0:00:10.9]} 53... Qe6 {[%clk 0:00:01.9]} 54. Qf3
{[%clk 0:00:10.6]} 54... Re8 {[%clk 0:00:02]} 55. Rf1 {[%clk 0:00:10.4]} 55...
Qb6+ {[%clk 0:00:02.1]} 56. Kg2 {[%clk 0:00:10.2]} 56... Rd8 {[%clk 0:00:02.4]}
57. Rf2 {[%clk 0:00:10.4]} 57... Qd4 {[%clk 0:00:01.8]} 58. Ng4 {[%clk
0:00:09.8]} 58... Qd6 {[%clk 0:00:01.8]} 59. f5 {[%clk 0:00:09.6]} 59... Qc5
{[%clk 0:00:01.8]} 60. f6 {[%clk 0:00:09.5]} 60... Qg5 {[%clk 0:00:02]} 61. Qg3
{[%clk 0:00:09.7]} 61... gxf6 {[%clk 0:00:01.9]} 62. Nxf6+ {[%clk 0:00:09.7]}
1-0